bitfinex/quotes_BTCUSD_20230404
["timestamp","ask_amount","ask_price","bid_price","bid_amount"]
[1680598711895,0.62039132,28103.0,28102.0,0.018]
[1680598712089,0.29090933,28102.0,28099.0,0.33671297]
[1680598712350,0.29108933,28102.0,28100.0,0.007199]
[1680598712573,0.0236,28101.0,28099.0,0.42109989]
[1680598712802,0.29108933,28102.0,28100.0,0.007306]
[1680598713028,0.0236,28101.0,28100.0,0.007306]
[1680598713253,0.02378,28101.0,28100.0,0.007306]
[1680598713742,0.03078,28101.0,28100.0,0.007306]
[1680598713965,0.02378,28101.0,28100.0,0.007306]
[1680598714195,0.0366,28101.0,28100.0,0.008306]
[1680598714869,0.08713285,28101.0,28100.0,0.008306]
[1680598715090,0.08731285,28101.0,28100.0,0.008306]
[1680598715280,0.03678,28101.0,28100.0,0.008306]
[1680598715531,0.0366,28101.0,28100.0,0.008306]
[1680598715979,0.03678,28101.0,28100.0,0.008306]
[1680598716463,0.03678,28101.0,28100.0,0.09269292]
[1680598717130,0.08731285,28101.0,28100.0,0.08538692]
[1680598717348,0.08731285,28101.0,28100.0,0.09320192]
[1680598718448,0.08731285,28101.0,28100.0,0.13539537]
[1680598718665,0.03678,28101.0,28100.0,0.55570656]
[1680598719336,0.03678,28101.0,28100.0,0.2200261]
[1680598719560,0.03678,28101.0,28100.0,0.64034046]
[1680598719779,0.03678,28101.0,28100.0,0.55570973]
[1680598720040,0.03678,28101.0,28100.0,0.22002647]
[1680598720782,0.03672,28101.0,28100.0,0.20943547]
[1680598720925,0.0366,28101.0,28100.0,0.20943547]
[1680598724774,0.013,28101.0,28100.0,0.20943547]
[1680598725011,0.013,28101.0,28100.0,0.57642384]
[1680598725236,0.01112741,28101.0,28100.0,0.68889024]
[1680598725476,0.01112741,28101.0,28100.0,0.76537385]
[1680598725693,0.01112741,28101.0,28100.0,0.75113985]
[1680598726149,0.0235,28103.0,28100.0,0.75113985]
[1680598726437,0.0235,28103.0,28102.0,0.16919109]
[1680598727584,0.0235,28103.0,28102.0,0.58948412]
[1680598727818,0.0235,28103.0,28102.0,0.80115298]
[1680598728061,0.36909356,28103.0,28102.0,0.08460711]
[1680598728290,0.36927356,28103.0,28102.0,0.08460711]
[1680598728513,0.37027356,28103.0,28102.0,0.09060711]
[1680598728763,0.36927356,28103.0,28102.0,0.08460711]
[1680598729004,0.37027356,28103.0,28102.0,0.09060711]
[1680598729473,0.36927356,28103.0,28102.0,0.08460711]
[1680598729689,0.38227356,28103.0,28102.0,0.08560711]
[1680598731012,0.03668,28103.0,28102.0,0.08560711]
[1680598731235,0.0365,28103.0,28102.0,0.08560711]
[1680598731726,0.03668,28103.0,28102.0,0.08560711]
[1680598732630,0.03668,28103.0,28102.0,0.21253367]
[1680598734873,0.03668,28103.0,28102.0,0.54820759]
[1680598735090,0.03668,28103.0,28102.0,0.63282185]
[1680598735555,0.34767334,28103.0,28102.0,0.63282185]
[1680598735774,0.34767334,28103.0,28102.0,0.21254082]
[1680598735996,0.34767334,28103.0,28102.0,0.63282446]
[1680598737146,0.34767334,28103.0,28102.0,0.21254305]
[1680598737589,0.34767334,28103.0,28102.0,0.54820871]
[1680598737820,0.34767334,28103.0,28102.0,0.21254474]
[1680598738036,0.34767334,28103.0,28102.0,0.63282689]
[1680598739150,0.03668,28103.0,28102.0,0.63282689]
[1680598739428,0.0365,28103.0,28102.0,0.63282689]
[1680598739651,0.03668,28103.0,28102.0,0.21254149]
[1680598739836,0.03668,28103.0,28102.0,0.12792656]
[1680598740313,0.40163972,28103.0,28102.0,0.54820861]
[1680598741195,0.03668,28103.0,28102.0,0.54820861]
[1680598741416,0.0365,28103.0,28102.0,0.54820861]
[1680598741638,0.03668,28103.0,28102.0,0.54820861]
[1680598741862,0.03668,28103.0,28102.0,0.63282337]
[1680598742081,0.03668,28103.0,28102.0,0.54820861]
[1680598743872,0.43315646,28103.0,28102.0,0.54820861]
[1680598745527,0.49423602,28103.0,28102.0,0.08561836]
[1680598745988,0.43315646,28103.0,28102.0,0.08561836]
[1680598747774,0.43315646,28103.0,28102.0,0.04561836]
[1680598747998,0.43315646,28103.0,28102.0,0.17254492]
[1680598748459,0.43315646,28103.0,28102.0,0.12692656]
[1680598751519,0.43315646,28103.0,28102.0,0.16919109]
[1680598752190,0.43315646,28103.0,28102.0,0.29628915]
[1680598752418,0.43315646,28103.0,28102.0,0.58948242]
[1680598755164,0.43315646,28103.0,28101.0,0.56581856]
[1680598755165,0.17763913,28102.0,28101.0,0.12734901]
[1680598755393,0.20113913,28102.0,28101.0,0.12716901]
[1680598755617,0.20113913,28102.0,28100.0,0.16937109]
[1680598755618,0.20113913,28102.0,28100.0,0.2965401]
[1680598755852,0.0235,28101.0,28100.0,0.2965401]
[1680598756302,0.34089218,28101.0,28100.0,0.2965401]
[1680598756759,0.34089218,28101.0,28100.0,0.54768305]
[1680598757707,0.36589218,28101.0,28100.0,0.12834901]
[1680598757945,0.36589218,28101.0,28100.0,0.54868305]
[1680598758182,0.0485,28101.0,28100.0,0.59070513]
[1680598759674,0.37876405,28101.0,28100.0,0.59070513]
[1680598762083,0.0485,28101.0,28100.0,0.59070513]
[1680598768915,0.025,28101.0,28100.0,1.08009006]
[1680598769144,0.025,28101.0,28100.0,0.7985168]
[1680598770954,0.02488507,28101.0,28100.0,0.7984568]
[1680598771189,0.02488507,28101.0,28100.0,0.7983368]
[1680598784408,0.02488507,28101.0,28100.0,0.7985168]
[1680598785677,0.02488507,28101.0,28100.0,0.7983368]
[1680598787863,0.02488507,28101.0,28100.0,0.42133404]
[1680598788115,0.02488507,28101.0,28100.0,0.84179629]
[1680598788773,0.02488507,28101.0,28100.0,0.84079629]
[1680598788998,0.17763913,28102.0,28100.0,0.84079629]
[1680598789211,0.006,28101.0,28100.0,0.34586225]
[1680598789433,0.006,28101.0,28100.0,0.84213288]
[1680598790092,0.006,28101.0,28100.0,0.84231288]
[1680598790313,0.17763913,28102.0,28100.0,0.84131288]
[1680598790530,0.18363913,28102.0,28101.0,0.88048761]
[1680598790793,0.17763913,28102.0,28101.0,0.88048761]
[1680598791006,0.17763913,28102.0,28101.0,0.80448761]
[1680598791453,0.18963913,28102.0,28101.0,0.80548761]
[1680598791676,0.21134641,28102.0,28101.0,0.63217499]
[1680598797347,0.21134641,28102.0,28101.0,0.39915801]
[1680598797600,0.21134641,28102.0,28101.0,0.83391226]
[1680598797820,0.21134641,28102.0,28101.0,0.39915801]
[1680598798072,0.21134641,28102.0,28101.0,0.85524399]
[1680598798777,0.18963913,28102.0,28101.0,0.85524399]
[1680598800944,0.18963913,28102.0,28101.0,0.77964399]
[1680598801604,0.18963913,28102.0,28101.0,0.70404399]
[1680598804807,0.18963913,28102.0,28101.0,0.92125381]
[1680598805042,0.18963913,28102.0,28101.0,0.70404399]
[1680598805736,0.18963913,28102.0,28101.0,0.9212524]
[1680598805966,0.18963913,28102.0,28101.0,0.70404399]
[1680598808009,0.012,28102.0,28101.0,0.88509328]
[1680598808241,0.17763913,28105.0,28102.0,0.31198573]
[1680598808473,0.17763913,28105.0,28103.0,0.5009278]
[1680598808719,0.17781913,28105.0,28103.0,0.5009278]
[1680598808936,0.17781913,28105.0,28104.0,0.61830731]
[1680598809623,0.17763913,28105.0,28104.0,0.61830731]
[1680598810122,0.17963913,28105.0,28104.0,0.63730731]
[1680598811697,0.17981913,28105.0,28104.0,0.63730731]
[1680598814058,0.17963913,28105.0,28104.0,0.63730656]
[1680598814280,0.17963913,28105.0,28104.0,0.63724656]
[1680598822331,0.20165064,28105.0,28104.0,0.63724656]
[1680598823466,0.17963913,28105.0,28104.0,0.63724656]
[1680598826788,0.17981913,28105.0,28104.0,0.63724656]
[1680598827216,0.20211841,28105.0,28104.0,0.63724656]
[1680598827874,0.20193841,28105.0,28104.0,0.63724656]
[1680598828300,0.17963913,28105.0,28104.0,0.63724656]
[1680598828512,0.17963913,28105.0,28104.0,0.84873636]
[1680598828729,0.17963913,28105.0,28104.0,0.63724656]
[1680598829189,0.20193841,28105.0,28104.0,0.63724656]
[1680598830576,0.20193841,28105.0,28104.0,0.84877067]
[1680598830792,0.20193841,28105.0,28104.0,0.63724656]
[1680598831897,0.20211841,28105.0,28104.0,0.63724656]
[1680598833096,0.17981913,28105.0,28104.0,0.63724656]
[1680598833317,0.17963913,28105.0,28104.0,0.63724656]
[1680598834158,0.20193841,28105.0,28104.0,0.63724656]
[1680598834388,0.20211841,28105.0,28104.0,0.63724656]
[1680598835035,0.17981913,28105.0,28104.0,0.63724656]
[1680598835253,0.17963913,28105.0,28104.0,0.63724656]
[1680598836117,0.20193841,28105.0,28104.0,0.63724656]
[1680598836327,0.20211841,28105.0,28104.0,0.63724656]
[1680598837271,0.20200702,28105.0,28104.0,0.63724656]
[1680598837479,0.20182702,28105.0,28104.0,0.63742656]
[1680598839201,0.17952774,28105.0,28104.0,0.63742656]
[1680598839867,0.17952774,28105.0,28104.0,0.85446108]
[1680598840093,0.20182702,28105.0,28104.0,0.85446108]
[1680598841197,0.17952774,28105.0,28104.0,0.85446108]
[1680598844753,0.17952774,28105.0,28104.0,1.10843087]
[1680598847151,0.20182702,28105.0,28104.0,1.10843087]
[1680598848215,0.17952774,28105.0,28104.0,0.73714232]
[1680598848432,0.57261181,28105.0,28104.0,0.73714232]
[1680598848668,0.57279181,28105.0,28104.0,0.26595801]
[1680598848903,0.57279181,28105.0,28104.0,0.019]
[1680598849113,0.59509109,28105.0,28104.0,0.019]
[1680598849749,0.59509109,28105.0,28104.0,0.26595801]
[1680598850189,0.59509109,28105.0,28104.0,0.23602415]
[1680598850403,0.59509109,28105.0,28104.0,0.48298216]
[1680598850847,0.59509109,28105.0,28104.0,0.73695195]
[1680598852384,0.20200702,28105.0,28104.0,0.73695195]
[1680598853913,0.67071586,28105.0,28104.0,0.69491249]
[1680598854145,0.73679957,28105.0,28104.0,0.43551181]
[1680598854372,0.34700169,28105.0,28104.0,0.43551181]
[1680598854605,0.34700169,28105.0,28104.0,0.1037937]
[1680598854829,0.34500169,28105.0,28103.0,0.2543475]
[1680598855035,0.13295417,28104.0,28103.0,0.0847937]
[1680598855294,0.43313417,28104.0,28103.0,0.0847937]
[1680598855534,0.2,28103.0,28102.0,0.22395941]
[1680598855756,0.276944,28103.0,28102.0,0.22395941]
[1680598855972,1.01306418,28103.0,28102.0,0.22395941]
[1680598856647,1.01306418,28103.0,28102.0,0.5594649]
[1680598856865,1.01306418,28103.0,28102.0,0.09671462]
[1680598857508,1.03006418,28103.0,28102.0,0.09871462]
[1680598858379,1.03006418,28103.0,28102.0,0.01398573]
[1680598858596,0.94368539,28103.0,28102.0,0.01398573]
[1680598861018,0.9793752,28103.0,28102.0,0.01398573]
[1680598861688,0.9262112,28103.0,28102.0,0.01398573]
[1680598861918,0.9788412,28103.0,28102.0,0.01398573]
[1680598862604,0.57646981,28103.0,28102.0,0.01398573]
[1680598864129,0.57646981,28103.0,28102.0,0.09871462]
[1680598864374,0.92300505,28103.0,28102.0,0.01398573]
[1680598864615,0.99282778,28103.0,28102.0,0.01398573]
[1680598868784,0.92300505,28103.0,28102.0,0.01398573]
[1680598870710,0.92440505,28103.0,28102.0,0.01398573]
[1680598871157,0.01536205,28103.0,28102.0,0.15588254]
[1680598871386,0.01,28106.0,28102.0,0.37631287]
[1680598871387,0.00012,28104.0,28102.0,0.37631287]
[1680598871613,0.02536205,28106.0,28103.0,0.42221948]
[1680598871867,0.02536205,28106.0,28105.0,0.16904824]
[1680598872135,0.02536205,28106.0,28105.0,0.80812625]
[1680598872361,0.02536205,28106.0,28105.0,1.43968702]
[1680598872588,0.02536205,28106.0,28105.0,1.22837672]
[1680598873031,0.02536205,28106.0,28105.0,1.23837672]
[1680598873244,0.02536205,28106.0,28105.0,1.0262709]
[1680598873546,0.02536205,28106.0,28105.0,0.85722266]
[1680598874740,0.33908253,28106.0,28105.0,0.55722266]
[1680598875888,0.02536205,28106.0,28105.0,0.55722266]
[1680598878074,0.02536205,28106.0,28105.0,0.85513867]
[1680598878292,0.02536205,28106.0,28105.0,1.01535678]
[1680598878293,0.01,28106.0,28105.0,1.01535678]
[1680598878519,0.01,28106.0,28105.0,1.4133393]
[1680598878960,0.01,28106.0,28105.0,1.4275713]
[1680598879639,0.01,28106.0,28105.0,1.4277513]
[1680598880597,0.0049,28106.0,28105.0,1.4275713]
[1680598880817,0.0049,28106.0,28105.0,1.02956688]
[1680598881041,0.0049,28106.0,28105.0,0.95386688]
[1680598881290,0.0049,28106.0,28105.0,1.30465501]
[1680598881753,0.0049,28106.0,28105.0,0.93963488]
[1680598881979,0.0049,28106.0,28105.0,1.29443621]
[1680598884096,0.0049,28106.0,28105.0,0.93963488]
[1680598884334,0.0049,28106.0,28105.0,1.10518957]
[1680598884567,0.0049,28106.0,28105.0,1.31643099]
[1680598884781,0.0049,28106.0,28105.0,1.10518957]
[1680598885004,0.0049,28106.0,28105.0,1.31641819]
[1680598885220,0.0049,28106.0,28105.0,1.31641799]
[1680598886114,0.0049,28106.0,28105.0,1.30641799]
[1680598886361,0.0049,28106.0,28105.0,1.33441799]
[1680598887747,0.0049,28106.0,28105.0,1.33439626]
[1680598890627,0.0049,28106.0,28105.0,1.38154556]
[1680598891794,0.0049,28106.0,28105.0,1.36731356]
[1680598892018,0.0049,28106.0,28105.0,0.76057848]
[1680598892242,0.0049,28106.0,28105.0,1.19796042]
[1680598892900,0.0049,28106.0,28105.0,1.40912042]
[1680598895765,0.0049,28106.0,28105.0,1.42335242]
[1680598895979,0.0049,28106.0,28105.0,1.40912042]
[1680598896209,0.0049,28106.0,28105.0,0.97173848]
[1680598896428,0.0049,28106.0,28105.0,1.43373554]
[1680598896696,0.0049,28106.0,28105.0,1.213477]
[1680598896936,0.0049,28106.0,28105.0,1.42454711]
[1680598897385,0.0049,28106.0,28105.0,0.97164859]
[1680598897588,0.0049,28106.0,28105.0,1.35843185]
[1680598898018,0.0049,28106.0,28105.0,1.34419985]
[1680598898636,0.0049,28106.0,28105.0,0.95741659]
[1680598898894,0.0049,28106.0,28105.0,1.37077689]
[1680598899678,0.0049,28106.0,28105.0,0.95741659]
[1680598899891,0.0049,28106.0,28105.0,1.40994543]
[1680598901019,0.0049,28106.0,28105.0,1.48524543]
[1680598901456,0.00427316,28106.0,28105.0,1.48524543]
[1680598904967,0.00427316,28106.0,28105.0,0.82164648]
[1680598905182,0.00427316,28106.0,28105.0,1.03842011]
[1680598905642,0.00427316,28106.0,28105.0,1.42285956]
[1680598907087,3.16e-06,28106.0,28105.0,1.49176267]
[1680598907324,0.02299,28108.0,28106.0,0.01281631]
[1680598907548,0.02299,28108.0,28107.0,0.295973]
[1680598907774,0.02299,28108.0,28107.0,1.10179311]
[1680598908242,0.02299,28108.0,28107.0,0.93109311]
[1680598908458,0.03835205,28109.0,28107.0,1.43915291]
[1680598908459,0.02299,28109.0,28107.0,1.43915291]
[1680598908684,0.02299,28109.0,28108.0,1.01112011]
[1680598908902,0.02299,28109.0,28108.0,1.19605011]
[1680598909347,0.02299,28109.0,28108.0,1.10582011]
[1680598909608,0.02299,28109.0,28108.0,0.93512011]
[1680598910047,0.02299,28109.0,28108.0,1.14615931]
[1680598910683,0.02299,28109.0,28108.0,1.17415931]
[1680598911126,0.02299,28109.0,28108.0,1.44233573]
[1680598911335,0.02299,28109.0,28108.0,1.44233468]
[1680598911970,0.02299,28109.0,28108.0,1.44232687]
[1680598912162,0.02299,28109.0,28108.0,1.44232488]
[1680598912372,0.02299,28109.0,28108.0,1.23123649]
[1680598916137,0.02299,28109.0,28108.0,1.01446286]
[1680598916345,0.02299,28109.0,28108.0,1.26772266]
[1680598918504,0.02299,28109.0,28108.0,0.99960628]
[1680598918720,0.02299,28109.0,28108.0,1.54660797]
[1680598920512,0.02299,28109.0,28108.0,1.56083797]
[1680598923578,0.02299,28109.0,28108.0,1.30757817]
[1680598924016,0.02299,28109.0,28108.0,1.14803735]
[1680598929171,0.02299,28109.0,28108.0,1.58557931]
[1680598929387,0.02299,28109.0,28108.0,1.41966206]
[1680598930132,0.02299,28109.0,28108.0,0.9821201]
[1680598930347,0.02299,28109.0,28108.0,1.33228517]
[1680598930571,0.02299,28109.0,28108.0,0.9821201]
[1680598931017,0.02299,28109.0,28108.0,1.0581201]
[1680598931264,0.02299,28109.0,28108.0,1.46138287]
[1680598931572,0.01328885,28109.0,28108.0,1.0301201]
[1680598931805,0.01328885,28109.0,28108.0,1.0666201]
[1680598932224,0.01328885,28109.0,28108.0,1.0386201]
[1680598932630,0.01328885,28109.0,28108.0,1.0666201]
[1680598933689,0.01328885,28109.0,28108.0,1.4073665]
[1680598933898,0.01328885,28109.0,28108.0,1.0666201]
[1680598934348,0.01328885,28109.0,28108.0,1.50112607]
[1680598934535,0.01328885,28109.0,28108.0,1.50124607]
[1680598935173,0.01328885,28109.0,28108.0,1.0667401]
[1680598935413,0.01328885,28109.0,28108.0,1.43564089]
[1680598935633,0.01328885,28109.0,28108.0,1.14671089]
[1680598935843,0.01328885,28109.0,28108.0,1.31741089]
[1680598936052,0.01328885,28109.0,28108.0,1.17471089]
[1680598936480,0.01328885,28109.0,28108.0,1.34541089]
[1680598936707,0.01328885,28109.0,28108.0,1.17471089]
[1680598936925,0.01328885,28109.0,28108.0,1.14671089]
[1680598937137,0.01328885,28109.0,28108.0,1.34541089]
[1680598937350,0.01328885,28109.0,28108.0,1.17471089]
[1680598937561,0.01328885,28109.0,28108.0,1.34541089]
[1680598937774,0.01328885,28109.0,28108.0,1.17471089]
[1680598938665,0.01328885,28109.0,28108.0,1.34541089]
[1680598941379,0.04796538,28109.0,28108.0,0.87469266]
[1680598941614,0.04796538,28109.0,28108.0,0.95937876]
[1680598941615,0.41610996,28109.0,28108.0,0.95937876]
[1680598941844,0.40501343,28109.0,28108.0,0.74261789]
[1680598942072,0.40501343,28109.0,28108.0,0.57331994]
[1680598942519,0.45677543,28109.0,28108.0,0.11263553]
[1680598942743,0.01346885,28109.0,28108.0,0.21152795]
[1680598942971,0.01346885,28109.0,28108.0,1.00503333]
[1680598942972,0.01328885,28109.0,28108.0,1.00503333]
[1680598943170,0.01328885,28109.0,28108.0,1.24974134]
[1680598943171,0.01346885,28109.0,28108.0,1.24974134]
[1680598943487,0.01346885,28109.0,28108.0,0.77915885]
[1680598943714,0.01328885,28109.0,28108.0,0.77915885]
[1680598943932,0.01328885,28109.0,28108.0,0.75115885]
[1680598944173,0.01328885,28109.0,28108.0,0.76815885]
[1680598944391,0.01328885,28109.0,28108.0,0.75115885]
[1680598944646,0.01328885,28109.0,28108.0,0.77515885]
[1680598944843,0.01328885,28109.0,28108.0,0.75115885]
[1680598945051,0.01328885,28109.0,28108.0,0.76815885]
[1680598945945,0.01328885,28109.0,28108.0,0.75115885]
[1680598946205,0.01328885,28109.0,28108.0,0.77515885]
[1680598947593,0.01328885,28109.0,28108.0,0.79364171]
[1680598947787,0.01328885,28109.0,28108.0,1.04739449]
[1680598948052,0.01328885,28109.0,28108.0,0.79364171]
[1680598948910,0.01328885,28109.0,28108.0,0.69792597]
[1680598949133,0.01328885,28109.0,28108.0,1.0796238]
[1680598949354,0.01328885,28109.0,28108.0,0.82587102]
[1680598949780,0.01328885,28109.0,28108.0,1.0796238]
[1680598950388,0.01328885,28109.0,28108.0,0.82587102]
[1680598950814,0.01328885,28109.0,28108.0,1.0796238]
[1680598952197,0.01328885,28109.0,28108.0,0.82587102]
[1680598952876,0.01328885,28109.0,28108.0,1.0796238]
[1680598953099,0.01328885,28109.0,28108.0,0.69792597]
[1680598953319,0.01328885,28109.0,28108.0,1.06912193]
[1680598954243,0.01200254,28109.0,28108.0,0.71078907]
[1680598954462,0.01200254,28109.0,28108.0,1.1491971]
[1680598954933,0.01200254,28109.0,28108.0,0.72501907]
[1680598955165,0.01200254,28109.0,28108.0,0.68809575]
[1680598955393,0.01072423,28109.0,28108.0,0.85879575]
[1680598956075,0.01072423,28109.0,28108.0,1.15879575]
[1680598956294,0.00945654,28109.0,28108.0,1.15879575]
[1680598956954,0.00945654,28109.0,28108.0,1.53437892]
[1680598957172,0.00820208,28109.0,28108.0,1.53437892]
[1680598957396,0.00820208,28109.0,28108.0,1.15879575]
[1680598957842,0.00820208,28109.0,28108.0,1.53437892]
[1680598958067,0.00820208,28109.0,28108.0,1.15879575]
[1680598958280,0.00695972,28109.0,28108.0,1.53437892]
[1680598959237,0.00572727,28109.0,28108.0,1.53437892]
[1680598960320,0.00450614,28109.0,28108.0,1.53437892]
[1680598961187,0.00329581,28109.0,28108.0,1.53437892]
[1680598961616,0.04615793,28110.0,28109.0,0.3]
[1680598961847,0.04615793,28110.0,28109.0,0.74290319]
[1680598962073,0.04615793,28110.0,28109.0,1.13043265]
[1680598962339,0.04495914,28110.0,28109.0,1.14242053]
[1680598962568,0.04495914,28110.0,28109.0,1.15942053]
[1680598963244,0.04377109,28110.0,28109.0,1.15942053]
[1680598964350,0.04259315,28110.0,28109.0,1.15942053]
[1680598965244,0.04259315,28110.0,28109.0,1.51407109]
[1680598965245,0.02606577,28110.0,28109.0,1.51407109]
[1680598965466,0.02606577,28110.0,28109.0,2.03097109]
[1680598966377,0.02491043,28110.0,28109.0,2.03097109]
[1680598967273,0.02376556,28110.0,28109.0,2.01397109]
[1680598967715,0.02376556,28110.0,28109.0,2.04197109]
[1680598967934,0.02376556,28110.0,28109.0,2.01397109]
[1680598968152,0.02263355,28110.0,28109.0,2.04197109]
[1680598968380,0.02263355,28110.0,28109.0,1.87133109]
[1680598968600,0.02263355,28110.0,28109.0,2.41755426]
[1680598969331,0.02151165,28110.0,28109.0,2.41755426]
[1680598970241,0.02039574,28110.0,28109.0,2.38955426]
[1680598970453,0.02039574,28110.0,28109.0,2.41755426]
[1680598971127,0.0192849,28110.0,28109.0,2.41755426]
[1680598972281,0.01817911,28110.0,28109.0,2.41755426]
[1680598973121,0.01707835,28110.0,28109.0,2.41755426]
[1680598973344,0.01707835,28110.0,28109.0,1.68726053]
[1680598973551,0.01707835,28110.0,28109.0,1.66453053]
[1680598974190,0.01598259,28110.0,28109.0,1.66453053]
[1680598974947,0.01598259,28110.0,28109.0,1.23163053]
[1680598975395,0.01489181,28110.0,28109.0,1.23163053]
[1680598976272,0.01380599,28110.0,28109.0,1.23163053]
[1680598977160,0.0127251,28110.0,28109.0,1.60907109]
[1680598977889,0.0127251,28110.0,28109.0,1.98465426]
[1680598978334,0.01536205,28113.0,28110.0,0.33817616]
[1680598978566,0.01536205,28113.0,28112.0,0.17784]
[1680598978791,0.01536205,28113.0,28112.0,0.91224119]
[1680598979050,0.01536205,28113.0,28112.0,1.29971065]
[1680598979274,0.01429401,28113.0,28112.0,1.31039104]
[1680598979928,0.01429401,28113.0,28112.0,1.33839104]
[1680598980147,0.01323604,28113.0,28112.0,1.31039104]
[1680598980385,0.01323604,28113.0,28112.0,1.33839104]
[1680598981043,0.01323604,28113.0,28112.0,1.16055104]
[1680598981269,0.01218468,28113.0,28112.0,1.16055104]
[1680598981738,0.01218468,28113.0,28112.0,1.13255104]
[1680598981959,0.01218468,28113.0,28112.0,1.16055104]
[1680598982177,0.01218468,28113.0,28112.0,1.13255104]
[1680598982400,0.01103344,28113.0,28112.0,1.16055104]
[1680598983316,0.00988796,28113.0,28112.0,1.16055104]
[1680598984618,0.0087482,28113.0,28112.0,1.16055104]
[1680598985272,0.00761414,28113.0,28112.0,1.16055104]
[1680598985948,0.00761414,28113.0,28112.0,1.41393172]
[1680598986412,0.00648575,28113.0,28112.0,1.50758589]
[1680598986671,0.00648575,28113.0,28112.0,1.25420521]
[1680598986933,0.00648575,28113.0,28112.0,0.45885358]
[1680598987160,0.00536301,28113.0,28112.0,0.84410002]
[1680598987382,0.00536301,28113.0,28112.0,0.67546413]
[1680598987819,0.00536301,28113.0,28112.0,0.64746413]
[1680598988050,0.00536301,28113.0,28112.0,0.77167747]
[1680598988310,0.02784499,28113.0,28112.0,0.77167747]
[1680598988549,0.02784499,28113.0,28112.0,0.79967747]
[1680598988783,0.02784499,28113.0,28112.0,0.98300759]
[1680598989004,0.02802499,28113.0,28112.0,1.01100759]
[1680598989451,0.02802499,28113.0,28112.0,0.98300759]
[1680598989697,0.02802499,28113.0,28112.0,1.01100759]
[1680598989916,0.02802499,28113.0,28112.0,0.98300759]
[1680598990143,0.02802499,28113.0,28112.0,1.15209289]
[1680598990580,0.02802499,28113.0,28112.0,0.98300759]
[1680598990858,0.02802499,28113.0,28112.0,1.00700759]
[1680598991091,0.02802499,28113.0,28112.0,0.98300759]
[1680598991313,0.02802499,28113.0,28112.0,1.16909213]
[1680598991534,0.02802499,28113.0,28112.0,1.15209213]
[1680598991971,0.02802499,28113.0,28112.0,0.99300759]
[1680598992212,0.02802499,28113.0,28112.0,0.98300759]
[1680598992445,0.02802499,28113.0,28112.0,0.99300759]
[1680598992664,0.02802499,28113.0,28112.0,0.98300759]
[1680598992879,0.02802499,28113.0,28112.0,0.98700759]
[1680598994191,0.02802499,28113.0,28112.0,0.6421837]
[1680598994386,0.02802499,28113.0,28112.0,0.44085358]
[1680598994645,0.02802499,28113.0,28112.0,0.43085358]
[1680598994868,0.02802499,28113.0,28112.0,0.85161219]
[1680598995080,0.02784499,28113.0,28112.0,0.85173219]
[1680598995296,0.02802499,28113.0,28112.0,0.85555219]
[1680598995510,0.00442499,28113.0,28112.0,0.43085358]
[1680598995732,0.00424499,28113.0,28112.0,0.43085358]
[1680598995984,0.00424499,28113.0,28112.0,0.44085358]
[1680598996418,0.00424499,28113.0,28112.0,0.43085358]
[1680598997350,0.00424499,28113.0,28112.0,0.43403738]
[1680598997784,0.00424499,28113.0,28112.0,0.45803738]
[1680598998245,0.00371158,28113.0,28112.0,0.88205806]
[1680598998682,0.00371158,28113.0,28112.0,0.62867738]
[1680598998900,0.00371158,28113.0,28112.0,0.88232932]
[1680598999097,0.00371158,28113.0,28112.0,0.62867738]
[1680598999486,0.00371158,28113.0,28112.0,0.88251368]
[1680598999690,0.00371158,28113.0,28112.0,0.62885738]
[1680599000144,0.00371158,28113.0,28112.0,0.62867738]
[1680599000307,0.00371158,28113.0,28112.0,0.64308538]
[1680599000877,0.00371158,28113.0,28112.0,0.62867738]
[1680599002736,0.00371158,28113.0,28112.0,0.62885738]
[1680599002922,0.00371158,28113.0,28112.0,0.64308538]
[1680599003140,0.00371158,28113.0,28112.0,0.85954543]
[1680599003878,0.00371158,28113.0,28112.0,0.64308538]
[1680599004326,0.00233871,28113.0,28112.0,0.64290538]
[1680599004554,0.00233871,28113.0,28112.0,0.62867738]
[1680599005189,0.00097442,28113.0,28112.0,0.62867738]
[1680599005406,0.00097442,28113.0,28112.0,0.84533363]
[1680599005624,0.00097442,28113.0,28112.0,0.62867738]
[1680599006303,0.02299,28117.0,28113.0,0.3]
[1680599006555,0.02299,28117.0,28116.0,0.38051349]
[1680599006791,0.02317,28117.0,28116.0,0.63156957]
[1680599007027,0.39019955,28117.0,28116.0,0.63156957]
[1680599007242,0.39019955,28117.0,28116.0,0.60273657]
[1680599008155,0.39219955,28117.0,28116.0,0.60273657]
[1680599008373,0.04877,28117.0,28116.0,0.60273657]
[1680599008869,0.04877,28117.0,28116.0,0.94119394]
[1680599009087,0.04677,28117.0,28116.0,0.94119394]
[1680599009310,0.04677,28117.0,28116.0,0.96519394]
[1680599009533,0.04677,28117.0,28116.0,0.94119394]
[1680599010266,0.04677,28117.0,28116.0,0.95119394]
[1680599011894,0.04657,28117.0,28116.0,0.95119394]
[1680599012125,0.02317,28117.0,28116.0,0.95119394]
[1680599013253,0.02317,28117.0,28116.0,0.93775303]
[1680599014380,0.02317,28117.0,28116.0,0.9510287]
[1680599017217,0.04667,28117.0,28116.0,0.9510287]
[1680599021092,0.02317,28117.0,28116.0,0.9510287]
[1680599023125,0.02299,28117.0,28116.0,0.9510287]
[1680599024434,0.02299,28117.0,28116.0,0.59544886]
[1680599024655,0.02299,28117.0,28116.0,0.76608886]
[1680599024878,0.02299,28117.0,28116.0,0.98257069]
[1680599025099,0.02299,28117.0,28116.0,1.34685926]
[1680599025292,0.02299,28117.0,28116.0,1.67485926]
[1680599025293,0.02169405,28117.0,28116.0,1.67485926]
[1680599025553,0.02169405,28117.0,28116.0,1.68908526]
[1680599025795,0.02169405,28117.0,28116.0,1.28679669]
[1680599026012,0.02169405,28117.0,28116.0,1.68908526]
[1680599026241,0.01999251,28117.0,28116.0,1.69282495]
[1680599027142,0.01999251,28117.0,28116.0,1.66482495]
[1680599027357,0.01830349,28117.0,28116.0,1.54443943]
[1680599027778,0.01830349,28117.0,28116.0,1.17015086]
[1680599028006,0.01830349,28117.0,28116.0,1.51643943]
[1680599028226,0.01323445,28117.0,28116.0,1.15326071]
[1680599031509,0.01323445,28117.0,28116.0,1.12526071]
[1680599031730,0.01323445,28117.0,28116.0,1.15326071]
[1680599032397,0.01323445,28117.0,28116.0,1.12526071]
[1680599032839,0.01323445,28117.0,28116.0,1.12544071]
[1680599033272,0.01323445,28117.0,28116.0,1.15326071]
[1680599033474,0.01323445,28117.0,28116.0,1.12526071]
[1680599033690,0.01323445,28117.0,28116.0,1.15326071]
[1680599034014,0.01323445,28117.0,28116.0,1.12526071]
[1680599034236,0.01323445,28117.0,28116.0,0.93677888]
[1680599034460,0.02299,28120.0,28117.0,0.3]
[1680599034659,0.02299,28120.0,28119.0,0.51411089]
[1680599034915,0.02299,28120.0,28119.0,0.52833589]
[1680599035172,0.02299,28120.0,28119.0,1.11908908]